Cogmind - Beta 10.2 @@@ ROGUE MODE // 2020.12.31 @ 21:45:20 Player: SureStep Result: Self-destructed Performance ------------- Evolutions (1) 500 Regions Visited (2) 400 Robots Destroyed (38) 190 Value Destroyed (1011) 1011 Prototype IDs (8) 160 Alien Tech Used (0) 0 Bonus (0) 0 TOTAL SCORE: 2261 Bonus ------- None Cogmind --------- Core Integrity 234/400 Matter 445/450 Energy 125/125 System Corruption 0% Temperature Cool (0) Movement Rolling (100) Ox1 Location -9/Materials Parts ------- > --- POWER (1) -------- Light Ion Engine > --- PROPULSION (3) --- Armored Wheel > --- UTILITY (3) ------ Medium Storage Unit Large Matter Pod High-powered Tractor Beam > --- WEAPON (2) ------- Heavy Assault Rifle Improved Assault Rifle > --- INVENTORY (8) ---- Armored Wheel Armored Wheel Heat Sink High-capacity Battery (400) Particle Cannon Particle Cannon Rocket Launcher Peak State ------------ > --- POWER ------------ Light Nuclear Core > --- PROPULSION ------- Armored Wheel Armored Wheel > --- UTILITY ---------- Medium Storage Unit Large Matter Pod High-powered Tractor Beam > --- WEAPON ----------- Autogun Autogun > --- INVENTORY -------- Heavy Ion Engine Aluminum Leg Armored Wheel Armored Wheel Heat Sink High-capacity Battery High-powered Tractor Beam [Rating: 16] Favorites ----------- Power Light Ion Engine Engine Light Ion Engine Power Core Light Nuclear Core Propulsion Aluminum Leg Leg Aluminum Leg Wheel Armored Wheel Utility Medium Storage Unit Device High-powered Tractor Beam Storage Medium Storage Unit Weapon Autogun Energy Gun Medium Laser Ballistic Gun Autogun Build | -11 -10 -9 ------- Run | Scr Mat Mat Slots Evolved 2 | . . 2 Power . | . . . Propulsion 1 | . . 1 Utility 1 | . . 1 Weapon . | . . . Parts Attached 35 | 8 18 9 Power 8 | 1 3 4 Engine 6 | 1 2 3 Core 2 | . 1 1 Reactor . | . . . Propulsion 10 | 4 6 . Treads . | . . . Leg 6 | 2 4 . Wheel 4 | 2 2 . Hover . | . . . Flight . | . . . Utility 7 | 1 4 2 Device 4 | . 2 2 Storage 3 | 1 2 . Processor . | . . . Hackware . | . . . Protection . | . . . Artifact . | . . . Weapon 10 | 2 5 3 Energy Gun 1 | 1 . . Energy Cannon . | . . . Ballistic Gun 9 | 1 5 3 Ballistic Cannon . | . . . Launcher . | . . . Special Weapon . | . . . Impact Weapon . | . . . Slashing Weapon . | . . . Piercing Weapon . | . . . Special Melee Weapon . | . . . Unidentified Prototypes 2 | . . 2 Parts Lost 10 | . 5 5 Power 2 | . 1 1 Propulsion 1 | . . 1 Utility 3 | . 2 1 Weapon 4 | . 2 2 Highest Loss Streak 3 | . 3 2 Average Slot Usage (%) 93 | . 97 86 Engine 10 | . 12 5 Core 2 | . 1 4 Leg 17 | . 25 . Wheel 8 | . 2 21 Device 11 | . 11 10 Storage 17 | . 15 22 Ballistic Gun 25 | . 27 21 Naked Turns . | . . . Heaviest Build 25 | 13 22 25 Greatest Support 24 | 20 24 24 Greatest Overweight (x) 4 | 4 . 1 Average Overweight (x) . | . . . Largest Inventory Capacity 8 | 6 8 8 Average Capacity 7 | 5 7 8 Most Carried 8 | 3 8 8 Average Carried 6 | 1 6 6 Final Capacity 8 | 6 8 8 Final Carried 7 | 1 7 7 Class Distribution -------------------- 100% | Mutant Dominant Class ---------------- Mutant | -10/Materials Mutant | -9/Materials Resources | -11 -10 -9 ----------- Run | Scr Mat Mat Matter Collected 1670 | 239 582 849 Remotely 1292 | . 496 796 Salvage Created 1284 | . 654 630 Parts 80 | . 43 37 Haulers Intercepted 5 | . 2 3 Recyclers Shooed . | . . . Parts Field Recycled . | . . . Retrieved Matter . | . . . Parts Self-Destructed . | . . . Prevented . | . . . Kills | -11 -10 -9 ------- Run | Scr Mat Mat Combat Hostiles Destroyed 27 | . 14 13 Guns 26 | . 13 13 AOE 1 | . 1 . Classes Destroyed 7 | . 6 1 Worker 2 | . 2 . Builder 1 | . 1 . Hauler 5 | . 2 3 Watcher 3 | . 2 1 Swarmer 8 | . 3 5 Grunt 15 | . 11 4 Sentry 4 | . . 4 Best Kill Streak 3 | . 3 3 Combat Bots Only 3 | . 3 3 Max Kills in Single Turn 2 | . 2 1 Gunslinging . | . . . Exploded 1 | . 1 . Melee . | . . . Uniques/NPCs Destroyed . | . . . Combat | -11 -10 -9 -------- Run | Scr Mat Mat Damage Taken 1676 | . 881 795 Core 317 | . 151 166 Absorbed by Shields . | . . . Core Remaining (%) 69 | 100 39 . Volleys Fired 139 | . 72 67 Largest 2 | . 2 2 Hottest 46 | . 46 46 Shots Fired 263 | . 136 127 Gun 263 | . 136 127 Cannon . | . . . Launcher . | . . . Special . | . . . Kinetic 263 | . 136 127 Thermal . | . . . Explosive . | . . . Electromagnetic . | . . . Robot Hit Streak 15 | . 7 15 Robot Miss Streak 7 | . 5 7 Penetration Max . | . . . Secondary Targets 2 | . 1 1 Max Gunslinging Chain 1 | . 1 1 Shots Hit Robots 149 | . 76 73 Core Hits 53 | . 29 24 Critical Hits 1 | . 1 . Critical Kills . | . . . Critical Parts Destroyed 1 | . 1 . Melee Attacks . | . . . Impact . | . . . Slashing . | . . . Piercing . | . . . Sneak Attacks . | . . . Combat Hostiles . | . . . Follow-up Attacks . | . . . Damage Inflicted 2570 | . 1481 1089 Guns 2156 | . 1067 1089 Cannons . | . . . Explosions 414 | . 414 . Melee . | . . . Ramming . | . . . Kinetic 2156 | . 1067 1089 Thermal 101 | . 101 . Explosive 313 | . 313 . Electromagnetic . | . . . Impact . | . . . Slashing . | . . . Piercing . | . . . Highest Corruption . | . . . Average Corruption . | . . . Corruption Purged . | . . . Overload Shots . | . . . Overflow Damage 66 | . 66 . Projectiles . | . . . Explosions 66 | . 66 . Melee . | . . . Knockbacks . | . . . Impact . | . . . Kinetic . | . . . Secondary . | . . . Self-Inflicted Damage 151 | . 151 . Shots 2 | . 2 . Rammed . | . . . Targets Rammed . | . . . Kicked . | . . . Crushed . | . . . Highest Temperature 59 | . 59 20 Average Temperature 11 | . 14 5 Received Heat Transfer 483 | . 336 147 Siege Activations . | . . . Robots Corrupted . | . . . Combat Hostiles . | . . . Parts Fried . | . . . Impact Corruptions . | . . . Robots Melted . | . . . Combat Hostiles . | . . . Parts Melted . | . . . Heat Transferred 50 | . 50 . Parts Sabotaged . | . . . Parts Stolen . | . . . Parts Stripped . | . . . Power Chain Reactions . | . . . Missiles Intercepted . | . . . Alert | -11 -10 -9 ------- Run | Scr Mat Mat Peak Influence 311 | . 311 222 Initial 83 | . . 83 Average 131 | . 151 108 Maximum Alert Level 1 | . 1 1 Low Security (%) 74 | 100 65 88 Level 1 25 | . 34 11 Level 2 . | . . . Level 3 . | . . . Level 4 . | . . . Level 5 . | . . . High Security . | . . . Max Security . | . . . Squads Dispatched 4 | . 3 1 Investigation 3 | . 2 1 Extermination . | . . . Reinforcement 1 | . 1 . Assault . | . . . Garrison . | . . . Intercept . | . . . Construction Impeded . | . . . Haulers Reinforced . | . . . Stealth | -11 -10 -9 --------- Run | Scr Mat Mat Distress Signals 2 | . . 2 Communications Jammed . | . . . Distress Signals . | . . . Times Spotted 47 | . 22 25 Peak Tracking Total 8 | . 3 8 Tactical Retreats 3 | . 1 2 Traps | -11 -10 -9 ------- Run | Scr Mat Mat Traps Triggered 2 | . 2 . Indirectly . | . . . Trap Hack Attempts . | . . . Triggered . | . . . Disarmed . | . . . Reprogrammed . | . . . Reused . | . . . Traps Extracted . | . . . Installed . | . . . Triggered . | . . . Machines | -11 -10 -9 ---------- Run | Scr Mat Mat Machines Disabled 15 | . 14 1 Max in Single Turn 4 | . 4 1 Machines Sabotaged . | . . . Garrisons Compromised . | . . . Overloaded Fab Kills . | . . . Fab Network Shutdowns . | . . . Hacking | -11 -10 -9 --------- Run | Scr Mat Mat Machines Accessed 9 | . 5 4 Terminals 6 | . 4 2 Fabricators . | . . . Repair Stations 2 | . 1 1 Recycling Units . | . . . Scanalyzers 1 | . . 1 Garrison Access . | . . . Total Hacks 29 | . 14 15 Successful 19 | . 9 10 Failed 10 | . 5 5 Catastrophic . | . . . Database Lockouts . | . . . Manual . | . . . Terminals 16 | . 11 5 Fabricators . | . . . Repair Stations 6 | . 3 3 Recycling Units . | . . . Scanalyzers 7 | . . 7 Garrison Access . | . . . Terminal Hacks 10 | . 7 3 Prototype ID Bank 3 | . 2 1 Level Access Points 1 | . 1 . Unreport Threat 1 | . . 1 Locate Traps 1 | . 1 . Dispatch Records 2 | . 1 1 Hauler Manifests 1 | . 1 . Zone Layout 1 | . 1 . Fabricator Hacks . | . . . Repair Station Hacks 3 | . 2 1 Scan Component 2 | . 1 1 Repair 1 | . 1 . Recycling Unit Hacks . | . . . Scanalyzer 6 | . . 6 Insert Component 3 | . . 3 Analyze 3 | . . 3 Garrison Access Hacks . | . . . Unauthorized Hacks . | . . . Terminals . | . . . Fabricators . | . . . Repair Stations . | . . . Recycling Units . | . . . Scanalyzers . | . . . Garrison Access . | . . . Data Cores Recovered . | . . . Used . | . . . Hacking Detections 6 | . 2 4 Full Trace Events 5 | . 2 3 Feedback Events . | . . . Feedback Blocked . | . . . Robot Schematics Acquired . | . . . Robots Built . | . . . Matter . | . . . Time . | . . . Total Robot Build Rating . | . . . Part Schematics Acquired 1 | . . 1 Parts Built . | . . . Matter . | . . . Time . | . . . Total Part Build Rating . | . . . Parts Repaired 1 | . 1 . Time 16 | . 16 . Parts Recycled . | . . . Recycled Matter . | . . . Retrieved Matter . | . . . Retrieved Components . | . . . Parts Scanalyzed 3 | . . 3 Part Schematics Acquired 1 | . . 1 Parts Damaged . | . . . Bothacking | -11 -10 -9 ------------ Run | Scr Mat Mat Used RIF Installer . | . . . Robots Hacked . | . . . Non-combat . | . . . Combat . | . . . Robot Hacks Applied . | . . . Relay Couplers Released . | . . . Robots Rewired . | . . . Allies Hacked . | . . . Hacks Repelled . | . . . Allies | -11 -10 -9 -------- Run | Scr Mat Mat Total Allies . | . . . Largest Group . | . . . Highest-Rated Group . | . . . Highest-Rated Ally . | . . . Total Orders . | . . . Ally Attacks . | . . . Total Damage . | . . . Kills . | . . . Allies Corrupted . | . . . Allies Melted . | . . . Intel | -11 -10 -9 ------- Run | Scr Mat Mat Robot Analysis Total . | . . . Derelict Logs Recovered . | . . . Drone Launches . | . . . Drone Recoveries . | . . . Exploration | -11 -10 -9 ------------- Run | Scr Mat Mat Turns Passed 1856 | 90 1218 548 Spaces Moved 1211 | 70 822 319 Core 17 | 17 . . Treads . | . . . Legs 716 | 17 699 . Wheels 478 | 36 123 319 Hover . | . . . Flight . | . . . Fastest Speed 50 | 50 90 90 Average Speed 108 | 102 115 92 Slowest Speed 250 | 250 120 100 Overloaded Moves . | . . . Propulsion Burnouts . | . . . Robots Hopped . | . . . Cave-ins Triggered . | . . . Exploration Rate (%) 40 | 5 97 20 Regions Visited 2 Branch Regions . Pre-discovered Areas . | . . . Known Exits Taken 1 | . 1 . Unknown Exits Taken 1 | 1 . . Scrap Searched . | . . . Spaces Dug . | . . . Terrain Destroyed 92 | . 92 . Melee . | . . . Projectile . | . . . AOE 92 | . 92 . Terrain Rammed . | . . . Walls Destroyed . | . . . Machines Disabled . | . . . Actions | -11 -10 -9 --------- Run | Scr Mat Mat Total 1548 | 90 989 469 Wait 93 | . 37 56 Move 1209 | 69 821 319 Hop . | . . . Pick Up 44 | 9 25 10 Fast Attach . | . . . Attach 34 | 8 17 9 Detach 11 | 2 6 3 Swap 1 | . 1 . Drop 17 | 2 10 5 Fire 139 | . 72 67 Melee . | . . . Ram . | . . . Kick . | . . . Crush . | . . . Escape Stasis . | . . . Rewire . | . . . Trap . | . . . Miscellaneous . | . . . Route ------- -11/Scrapyard -10/Materials (discovered 5 exits: *Mat x3 / [*Min x2]) -9/Materials History --------- Turn | Location | Event 6 | -11/Scrapyard | Discovered new exit (range 16) 91 | -11/Scrapyard | Entered Materials 331 | -10/Materials | Build established: Mutant 463 | -10/Materials | Discovered new exit (range 16) 506 | -10/Materials | Identified exit to Materials 554 | -10/Materials | Discovered new exit (range 12) 958 | -10/Materials | Lost 3 parts (1p2w) 1109 | -10/Materials | Core integrity fell below 50% 1174 | -10/Materials | Repaired Autogun 1309 | -10/Materials | Entered another Materials area 1309 | -9/Materials | Evolved 2 slots: Propulsion x1, Utility x1 1857 | -9/Materials | Self-destructed Last Messages --------------- Identified Imp. Assault Rifle. U-05 Engineer builds a Door. S-10 Pest destroyed. Acquired 15 matter. U-05 Engineer builds a Door. Acquired 13 matter. K-01 Serf cleans the Terminal. Connecting with Terminal... >>Enumerate(Squads) Retrieving dispatch records... Found 16 active squads: 6x Security 4x Surveillance 3x Patrol 3x Transport W-16 Scout sends out distress signal. Acquired 2 matter. K-01 Serf cleans the Fusion Modulator. Arm. Wheel destroyed. K-01 Serf cleans the Fusion Modulator. Map ----- +----------------------------------------------------+ | | | | | | | | | | | | | | | | | | | ?????????????????????????????????????????????????? | | ??????????????????????????????????????###########? | | ??????????????????????????????????????# #? | | ??????????????????????????????????????# #? | | ??????????????????????????????????????# #? | | ??????????????????????????????????????# #? | | ??????????????????????????????????????# #? | | ??????????????????????????????????????# #? | | ??????????????????????????????????????# #? | | ??????????????????????????????????????# #? | | ????????????????????????????? ###+########/#####? | | ???????????????????????????? + ! #?? | | ???????????????????????????????# #?? | | ???????????????????????????????## """ #?? | | ????????????????????????????????# """ ! #?? | | ??????????????????############### "" !### | | ??????????????????# w s@s [*## = # | | ??????????????????# """ """ sT + [ [! # | | ??????????????????# """ """ u =###########+#### # | | ??????????????????# """ """r #?????# [ # # | | ??????????????????? k #?????# """ = # # | | ???????????????????#############?????# """ # | | ?????????????????????????????????????# """ # | | ?????????????????????????????????????# #[ # | | ?????????????????????????????????????# """ # =# | | ?????????????????????????????????????# """ + # | | ?????????????????????????????????????# """ # # | | ?????????????????????????????????????# + # | | ?????????????????????????????????????##########+## | | ?????????????????????????????????????????????????? | | ?????????????????????????????????????????????????? | | ?????????????????????????????????????????????????? | | ?????????????????????????????????????????????????? | | ?????????????????????????????????????????????????? | | ?????????????????????????????????????????????????? | | ?????????????????????????????????????????????????? | | ?????????????????????????????????????????????????? | | ?????????????????????????????????????????????????? | | ?????????????????????????????????????????????????? | | ?????????????????????????????????????????????????? | | ?????????????????????????????????????????????????? | +----------------------------------------------------+ Best States ------------- Heat Dissipation 28 Energy Generation 14 Energy Capacity 265 Matter Stores 450 Matter Capacity 450 Sight Range 16 Terrain Scan Density 10 Evasion (%) 50 Item Schematics ----------------- Hcp. Battery | -9/Materials | Scanalyzed Robot Schematics ------------------ None Fabricated ------------ Nothing Alien Tech Used ----------------- None Achievements -------------- None Challenges ------------ None Game ------ Seed HelicalSupersonicBroadsword Manual? 0 Play Time 00:29:19 Cumulative 32.5 hours Start 2020.12.31 @ 16:14:17 End 2020.12.31 @ 21:45:20 Sessions 3 Manual Loads 0 Difficulty Rogue Special Mode None Game No. 42 Rogue 42 Adventurer 0 Explorer 0 Win Type - Total 0 Types 0/0/0/0/0/0/0/0/0 Lore% 12 Gallery% 17 Achievement% 15 Wizard Run 0 Options --------- ASCII 0 Keyboard 0 Movement Mouse Keybinds 0 Fullscreen 1 Font 18/SmallcapsGlow Map View 76x50 Tactical HUD 0 Map Filters NONE Filters NONE Steam 1 RUN: ad1f49c6-d6dc-4f24-9cc2-5c24b94b5273